[Event "Titled Tuesday Blitz May 03 Early 2022"]
[White "Priyanka, K"]
[Black "Hansch, Karsten"]
[WhiteFideId "5082986"]
[BlackFideId "24692239"]
[WhiteElo "1905"]
[BlackElo "2358"]
[Result "1/2-1/2"]
[Round "01"]
[TimeControl "180+1"]
[Date "2022.05.03"]
[WhiteClock "0:00:09"]
[BlackClock "0:01:58"]

1. e4 {[%clk 0:03:00]}  c6 {[%clk 0:03:00]} 2. Nf3 {[%clk 0:02:59]}  d5 {[%clk 0:03:01]} 3. Nc3 {[%clk 0:02:59]}  dxe4 {[%clk 0:03:01]} 4. Nxe4 {[%clk 0:02:59]}  Nf6 {[%clk 0:03:02]} 5. Qe2 {[%clk 0:02:59]}  Nxe4 {[%clk 0:03:02]} 6. Qxe4 {[%clk 0:03:00]}  Qd5 {[%clk 0:03:03]} 7. Qh4 {[%clk 0:02:57]}  Qf5 {[%clk 0:03:03]} 8. Bd3 {[%clk 0:02:39]}  Qg4 {[%clk 0:02:56]} 9. Qg3 {[%clk 0:02:40]}  Qxg3 {[%clk 0:02:55]} 10. hxg3 {[%clk 0:02:40]}  h6 {[%clk 0:02:55]} 11. b3 {[%clk 0:02:37]}  Nd7 {[%clk 0:02:56]} 12. Bb2 {[%clk 0:02:35]}  e6 {[%clk 0:02:56]} 13. O-O-O {[%clk 0:02:33]}  Nf6 {[%clk 0:02:49]} 14. Ne5 {[%clk 0:01:46]}  Bd6 {[%clk 0:02:46]} 15. Nc4 {[%clk 0:01:40]}  Be7 {[%clk 0:02:45]} 16. Be2 {[%clk 0:01:29]}  Bd7 {[%clk 0:02:44]} 17. g4 {[%clk 0:01:24]}  O-O-O {[%clk 0:02:44]} 18. Ne5 {[%clk 0:01:20]}  Rdf8 {[%clk 0:02:44]} 19. g5 {[%clk 0:01:08]}  hxg5 {[%clk 0:02:35]} 20. Rxh8 {[%clk 0:01:08]}  Rxh8 {[%clk 0:02:35]} 21. Nxf7 {[%clk 0:01:08]}  Rh2 {[%clk 0:02:35]} 22. Bf1 {[%clk 0:00:59]}  Ne4 {[%clk 0:02:26]} 23. f3 {[%clk 0:00:55]}  Ng3 {[%clk 0:02:25]} 24. Be5 {[%clk 0:00:43]}  Nxf1 {[%clk 0:02:25]} 25. Bxh2 {[%clk 0:00:39]}  Nxh2 {[%clk 0:02:25]} 26. Rh1 {[%clk 0:00:40]}  Be8 {[%clk 0:02:14]} 27. Ne5 {[%clk 0:00:39]}  Bd6 {[%clk 0:02:15]} 28. d4 {[%clk 0:00:39]}  c5 {[%clk 0:02:14]} 29. c3 {[%clk 0:00:33]}  cxd4 {[%clk 0:02:10]} 30. cxd4 {[%clk 0:00:33]}  Bxe5 {[%clk 0:02:07]} 31. dxe5 {[%clk 0:00:34]}  Nxf3 {[%clk 0:02:07]} 32. gxf3 {[%clk 0:00:32]}  Bc6 {[%clk 0:02:08]} 33. Rg1 {[%clk 0:00:27]}  Bxf3 {[%clk 0:02:06]} 34. Rxg5 {[%clk 0:00:27]}  Kd7 {[%clk 0:02:06]} 35. Rxg7+ {[%clk 0:00:27]}  Kc6 {[%clk 0:02:07]} 36. Kd2 {[%clk 0:00:25]}  Kc5 {[%clk 0:02:07]} 37. Ke3 {[%clk 0:00:25]}  Bd5 {[%clk 0:02:07]} 38. Kd3 {[%clk 0:00:23]}  a5 {[%clk 0:02:06]} 39. Kc3 {[%clk 0:00:22]}  b5 {[%clk 0:02:06]} 40. a3 {[%clk 0:00:21]}  b4+ {[%clk 0:02:06]} 41. axb4+ {[%clk 0:00:21]}  axb4+ {[%clk 0:02:07]} 42. Kc2 {[%clk 0:00:21]}  Kd4 {[%clk 0:02:04]} 43. Rg4+ {[%clk 0:00:18]}  Kc5 {[%clk 0:02:04]} 44. Kb2 {[%clk 0:00:15]}  Kb5 {[%clk 0:02:04]} 45. Kc2 {[%clk 0:00:15]}  Kc5 {[%clk 0:02:05]} 46. Rg3 {[%clk 0:00:15]}  Kd4 {[%clk 0:02:05]} 47. Rg5 {[%clk 0:00:15]}  Be4+ {[%clk 0:02:03]} 48. Kd2 {[%clk 0:00:14]}  Bd5 {[%clk 0:02:04]} 49. Kc2 {[%clk 0:00:14]}  Kc5 {[%clk 0:02:00]} 50. Rg8 {[%clk 0:00:11]}  Kd4 {[%clk 0:01:59]} 51. Rb8 {[%clk 0:00:11]}  Kc5 {[%clk 0:01:59]} 52. Kb2 {[%clk 0:00:11]}  Be4 {[%clk 0:01:56]} 53. Kc1 {[%clk 0:00:09]}  Bd5 {[%clk 0:01:56]} 54. Kc2 {[%clk 0:00:09]}  Be4+ {[%clk 0:01:57]} 55. Kd2 {[%clk 0:00:09]}  Bd5 {[%clk 0:01:57]} 56. Kc2 {[%clk 0:00:09]}  Be4+ {[%clk 0:01:58]} 57. Kb2 {[%clk 0:00:09]}  Bd5 {[%clk 0:01:58]} 58. Rc8+ {[%clk 0:00:09]}  Kd4 {[%clk 0:01:58]} 59. Rb8 {[%clk 0:00:09]}  Kc5 {[%clk 0:01:58]} 60. Kc2 {[%clk 0:00:09]} 1/2-1/2


[Site "https://www.chess.com"]

[Event "Titled Tuesday Blitz May 03 Early 2022"]
[White "Rabineau, Clement"]
[Black "Wagner, Dennis"]
[WhiteFideId "628891"]
[BlackFideId "24650684"]
[WhiteElo "2449"]
[BlackElo "2786"]
[Result "0-1"]
[Round "01"]
[TimeControl "180+1"]
[Date "2022.05.03"]
[WhiteClock "0:00:02"]
[BlackClock "0:00:26"]

1. e4 {[%clk 0:03:00]}  c5 {[%clk 0:02:56]} 2. c3 {[%clk 0:03:01]}  Nf6 {[%clk 0:02:55]} 3. e5 {[%clk 0:03:01]}  Nd5 {[%clk 0:02:56]} 4. Bc4 {[%clk 0:02:59]}  Nb6 {[%clk 0:02:55]} 5. Bb3 {[%clk 0:03:00]}  d5 {[%clk 0:02:53]} 6. exd6 {[%clk 0:02:59]}  Qxd6 {[%clk 0:02:44]} 7. d4 {[%clk 0:02:59]}  cxd4 {[%clk 0:02:38]} 8. cxd4 {[%clk 0:03:00]}  Nc6 {[%clk 0:02:36]} 9. Nf3 {[%clk 0:03:00]}  Be6 {[%clk 0:02:34]} 10. O-O {[%clk 0:02:49]}  Bxb3 {[%clk 0:02:31]} 11. Qxb3 {[%clk 0:02:50]}  e6 {[%clk 0:02:31]} 12. Nc3 {[%clk 0:02:49]}  Be7 {[%clk 0:02:17]} 13. Rd1 {[%clk 0:02:22]}  O-O {[%clk 0:02:16]} 14. Be3 {[%clk 0:01:59]}  Rfd8 {[%clk 0:02:10]} 15. Ne5 {[%clk 0:01:31]}  Rac8 {[%clk 0:01:36]} 16. Rac1 {[%clk 0:00:52]}  Qb4 {[%clk 0:01:34]} 17. Nxc6 {[%clk 0:00:40]}  Rxc6 {[%clk 0:01:32]} 18. d5 {[%clk 0:00:17]}  Qxb3 {[%clk 0:01:29]} 19. axb3 {[%clk 0:00:16]}  Nxd5 {[%clk 0:01:21]} 20. Bxa7 {[%clk 0:00:15]}  Rdc8 {[%clk 0:01:01]} 21. Bd4 {[%clk 0:00:06]}  Bf6 {[%clk 0:00:57]} 22. Bxf6 {[%clk 0:00:06]}  gxf6 {[%clk 0:00:53]} 23. Ne2 {[%clk 0:00:07]}  Rc2 {[%clk 0:00:48]} 24. Kf1 {[%clk 0:00:05]}  Kg7 {[%clk 0:00:44]} 25. Rxc2 {[%clk 0:00:04]}  Rxc2 {[%clk 0:00:44]} 26. Rb1 {[%clk 0:00:05]}  f5 {[%clk 0:00:41]} 27. Nd4 {[%clk 0:00:05]}  Rd2 {[%clk 0:00:39]} 28. Nf3 {[%clk 0:00:06]}  Rd3 {[%clk 0:00:40]} 29. Ke2 {[%clk 0:00:06]}  Rxb3 {[%clk 0:00:39]} 30. Nd2 {[%clk 0:00:05]}  Rb4 {[%clk 0:00:37]} 31. g3 {[%clk 0:00:05]}  Kf6 {[%clk 0:00:35]} 32. Kd3 {[%clk 0:00:04]}  h5 {[%clk 0:00:30]} 33. h3 {[%clk 0:00:04]}  h4 {[%clk 0:00:30]} 34. Nf1 {[%clk 0:00:02]}  Rb3+ {[%clk 0:00:26]} 35. Ke2 {[%clk 0:00:02]}  Nc3+ {[%clk 0:00:26]} 0-1


[Site "https://www.chess.com"]

[Event "Titled Tuesday Blitz May 03 Early 2022"]
[White "Rengifo Blancas, Renzo Jhonathan"]
[Black "Vignesh, N R"]
[WhiteFideId "3807185"]
[BlackFideId "25012215"]
[WhiteElo "2058"]
[BlackElo "2363"]
[Result "0-1"]
[Round "01"]
[TimeControl "180+1"]
[Date "2022.05.03"]
[WhiteClock "0:00:38"]
[BlackClock "0:01:25"]

1. d4 {[%clk 0:02:48]}  Nf6 {[%clk 0:02:58]} 2. c4 {[%clk 0:02:47]}  c5 {[%clk 0:02:58]} 3. d5 {[%clk 0:02:45]}  e6 {[%clk 0:02:57]} 4. Nc3 {[%clk 0:02:45]}  exd5 {[%clk 0:02:57]} 5. cxd5 {[%clk 0:02:46]}  d6 {[%clk 0:02:58]} 6. Nf3 {[%clk 0:02:43]}  g6 {[%clk 0:02:58]} 7. g3 {[%clk 0:02:43]}  Bg7 {[%clk 0:02:58]} 8. Bg2 {[%clk 0:02:43]}  O-O {[%clk 0:02:58]} 9. Nd2 {[%clk 0:02:43]}  Re8 {[%clk 0:02:57]} 10. O-O {[%clk 0:02:40]}  Nh5 {[%clk 0:02:54]} 11. Nc4 {[%clk 0:02:19]}  a6 {[%clk 0:02:46]} 12. a4 {[%clk 0:02:15]}  b6 {[%clk 0:02:37]} 13. Qc2 {[%clk 0:02:00]}  Ra7 {[%clk 0:02:35]} 14. b3 {[%clk 0:01:47]}  Rae7 {[%clk 0:02:25]} 15. e4 {[%clk 0:01:44]}  b5 {[%clk 0:02:18]} 16. axb5 {[%clk 0:01:39]}  axb5 {[%clk 0:02:18]} 17. Ra8 {[%clk 0:01:23]}  Bb7 {[%clk 0:02:04]} 18. Rxb8 {[%clk 0:01:22]}  Qxb8 {[%clk 0:02:05]} 19. Nxb5 {[%clk 0:01:22]}  Rd7 {[%clk 0:01:57]} 20. Nc3 {[%clk 0:00:58]}  Ba6 {[%clk 0:01:55]} 21. Bd2 {[%clk 0:00:56]}  Rb7 {[%clk 0:01:52]} 22. Na5 {[%clk 0:00:51]}  Bxf1 {[%clk 0:01:51]} 23. Bxf1 {[%clk 0:00:44]}  Rb6 {[%clk 0:01:43]} 24. Nc6 {[%clk 0:00:41]}  Qb7 {[%clk 0:01:35]} 25. Na4 {[%clk 0:00:39]}  Rxc6 {[%clk 0:01:34]} 26. dxc6 {[%clk 0:00:40]}  Qxc6 {[%clk 0:01:34]} 27. f3 {[%clk 0:00:39]}  d5 {[%clk 0:01:27]} 28. Qxc5 {[%clk 0:00:38]}  Qxc5+ {[%clk 0:01:26]} 29. Nxc5 {[%clk 0:00:38]}  Bd4+ {[%clk 0:01:26]} 30. Kg2 {[%clk 0:00:38]}  Bxc5 {[%clk 0:01:26]} 31. exd5 {[%clk 0:00:39]}  Nf6 {[%clk 0:01:25]} 32. Bc4 {[%clk 0:00:38]}  Nxd5 {[%clk 0:01:25]} 0-1


[Site "https://www.chess.com"]

[Event "Titled Tuesday Blitz May 03 Early 2022"]
[White "Richter, Nils"]
[Black "Kejzar, Petra"]
[WhiteFideId "12990809"]
[BlackFideId "14610213"]
[WhiteElo "2243"]
[BlackElo "2003"]
[Result "1-0"]
[Round "01"]
[TimeControl "180+1"]
[Date "2022.05.03"]
[WhiteClock "0:00:20"]
[BlackClock "0:00:02"]

1. e4 {[%clk 0:03:00]}  c5 {[%clk 0:02:57]} 2. Nf3 {[%clk 0:03:00]}  d6 {[%clk 0:02:56]} 3. d4 {[%clk 0:03:00]}  cxd4 {[%clk 0:02:57]} 4. Nxd4 {[%clk 0:03:01]}  Nf6 {[%clk 0:02:57]} 5. Nc3 {[%clk 0:03:02]}  a6 {[%clk 0:02:57]} 6. g3 {[%clk 0:03:02]}  e5 {[%clk 0:02:57]} 7. Nde2 {[%clk 0:03:02]}  Be7 {[%clk 0:02:56]} 8. Bg2 {[%clk 0:03:02]}  O-O {[%clk 0:02:56]} 9. O-O {[%clk 0:03:03]}  Be6 {[%clk 0:02:56]} 10. a4 {[%clk 0:03:02]}  Nc6 {[%clk 0:02:55]} 11. Bg5 {[%clk 0:02:56]}  Nd7 {[%clk 0:02:41]} 12. Be3 {[%clk 0:02:52]}  Kh8 {[%clk 0:02:27]} 13. Nd5 {[%clk 0:02:46]}  f5 {[%clk 0:02:25]} 14. exf5 {[%clk 0:02:42]}  Bxf5 {[%clk 0:02:21]} 15. Nec3 {[%clk 0:02:39]}  Bg5 {[%clk 0:02:14]} 16. Bxg5 {[%clk 0:02:30]}  Qxg5 {[%clk 0:02:13]} 17. Nc7 {[%clk 0:02:31]}  Rad8 {[%clk 0:02:11]} 18. Qxd6 {[%clk 0:02:25]}  Nf6 {[%clk 0:01:59]} 19. Qc5 {[%clk 0:02:16]}  Bxc2 {[%clk 0:01:46]} 20. Ne6 {[%clk 0:02:14]}  Qh5 {[%clk 0:01:38]} 21. Nxf8 {[%clk 0:02:10]}  Nd4 {[%clk 0:01:22]} 22. Qe7 {[%clk 0:01:56]}  Re8 {[%clk 0:01:17]} 23. Qd6 {[%clk 0:01:44]}  Nf5 {[%clk 0:00:38]} 24. Qd2 {[%clk 0:01:33]}  Bb3 {[%clk 0:00:32]} 25. Nd7 {[%clk 0:01:29]}  Ng4 {[%clk 0:00:13]} 26. h3 {[%clk 0:01:26]}  Ngh6 {[%clk 0:00:12]} 27. g4 {[%clk 0:01:19]}  Nxg4 {[%clk 0:00:09]} 28. hxg4 {[%clk 0:01:20]}  Qxg4 {[%clk 0:00:09]} 29. Rae1 {[%clk 0:01:11]}  Bc4 {[%clk 0:00:08]} 30. Nxe5 {[%clk 0:01:08]}  Rxe5 {[%clk 0:00:06]} 31. Qd8+ {[%clk 0:01:07]}  Bg8 {[%clk 0:00:04]} 32. Rxe5 {[%clk 0:01:04]}  Nh4 {[%clk 0:00:03]} 33. Qxh4 {[%clk 0:00:44]}  Qxh4 {[%clk 0:00:02]} 34. Rfe1 {[%clk 0:00:43]}  h6 {[%clk 0:00:02]} 35. Re8 {[%clk 0:00:42]}  Kh7 {[%clk 0:00:01]} 36. Be4+ {[%clk 0:00:41]}  g6 {[%clk 0:00:01]} 37. Re7+ {[%clk 0:00:38]}  Kh8 {[%clk 0:00:01]} 38. Bg2 {[%clk 0:00:32]}  Qg5 {[%clk 0:00:01]} 39. Rxb7 {[%clk 0:00:28]}  h5 {[%clk 0:00:01]} 40. Rb8 {[%clk 0:00:23]}  h4 {[%clk 0:00:01]} 41. Ree8 {[%clk 0:00:20]}  h3 {[%clk 0:00:02]} 42. Rxg8+ {[%clk 0:00:19]}  Kh7 {[%clk 0:00:02]} 43. Rh8+ {[%clk 0:00:19]}  Kg7 {[%clk 0:00:02]} 44. Rxh3 {[%clk 0:00:20]} 1-0


[Site "https://www.chess.com"]

[Event "Titled Tuesday Blitz May 03 Early 2022"]
[White "Ronka, Erik"]
[Black "Dubov, Daniil"]
[WhiteFideId "505080"]
[BlackFideId "24126055"]
[WhiteElo "2264"]
[BlackElo "2791"]
[Result "0-1"]
[Round "01"]
[TimeControl "180+1"]
[Date "2022.05.03"]
[WhiteClock "0:00:02"]
[BlackClock "0:00:18"]

1. e4 {[%clk 0:02:57]}  c6 {[%clk 0:02:54]} 2. d4 {[%clk 0:02:56]}  d5 {[%clk 0:02:54]} 3. Nd2 {[%clk 0:02:57]}  dxe4 {[%clk 0:02:34]} 4. Nxe4 {[%clk 0:02:58]}  Nf6 {[%clk 0:02:34]} 5. Nxf6+ {[%clk 0:02:58]}  exf6 {[%clk 0:02:35]} 6. c3 {[%clk 0:02:58]}  Bd6 {[%clk 0:02:35]} 7. Bd3 {[%clk 0:02:59]}  Nd7 {[%clk 0:02:32]} 8. Qc2 {[%clk 0:02:59]}  Nf8 {[%clk 0:02:32]} 9. Ne2 {[%clk 0:02:55]}  Qc7 {[%clk 0:02:32]} 10. Bd2 {[%clk 0:02:53]}  Be6 {[%clk 0:02:31]} 11. h3 {[%clk 0:02:45]}  Ng6 {[%clk 0:02:30]} 12. g3 {[%clk 0:02:28]}  O-O {[%clk 0:02:28]} 13. h4 {[%clk 0:02:22]}  Rfe8 {[%clk 0:02:12]} 14. h5 {[%clk 0:02:12]}  Nf8 {[%clk 0:02:12]} 15. Be3 {[%clk 0:01:36]}  Nd7 {[%clk 0:02:07]} 16. Bxh7+ {[%clk 0:01:31]}  Kh8 {[%clk 0:02:04]} 17. Bf5 {[%clk 0:01:28]}  Bd5 {[%clk 0:02:00]} 18. Rg1 {[%clk 0:01:13]}  b5 {[%clk 0:01:51]} 19. O-O-O {[%clk 0:00:53]}  Nb6 {[%clk 0:01:46]} 20. Nf4 {[%clk 0:00:43]}  Nc4 {[%clk 0:01:18]} 21. Nxd5 {[%clk 0:00:40]}  cxd5 {[%clk 0:01:19]} 22. Bd2 {[%clk 0:00:32]}  Re2 {[%clk 0:01:16]} 23. Rgf1 {[%clk 0:00:30]}  b4 {[%clk 0:01:11]} 24. Bd3 {[%clk 0:00:28]}  Rxd2 {[%clk 0:01:02]} 25. Rxd2 {[%clk 0:00:28]}  Nxd2 {[%clk 0:01:02]} 26. Kxd2 {[%clk 0:00:23]}  Rc8 {[%clk 0:00:55]} 27. Rc1 {[%clk 0:00:22]}  bxc3+ {[%clk 0:00:50]} 28. bxc3 {[%clk 0:00:23]}  Qa5 {[%clk 0:00:49]} 29. Rb1 {[%clk 0:00:18]}  Qc7 {[%clk 0:00:40]} 30. Rb5 {[%clk 0:00:18]}  Qc6 {[%clk 0:00:39]} 31. Rb3 {[%clk 0:00:17]}  a5 {[%clk 0:00:38]} 32. Rb5 {[%clk 0:00:17]}  a4 {[%clk 0:00:37]} 33. Rb1 {[%clk 0:00:15]}  Bc7 {[%clk 0:00:36]} 34. c4 {[%clk 0:00:14]}  Ba5+ {[%clk 0:00:34]} 35. Kd1 {[%clk 0:00:14]}  dxc4 {[%clk 0:00:34]} 36. Be4 {[%clk 0:00:14]}  Qd6 {[%clk 0:00:34]} 37. Ke2 {[%clk 0:00:13]}  Qxd4 {[%clk 0:00:32]} 38. Rd1 {[%clk 0:00:13]}  Qb6 {[%clk 0:00:26]} 39. Kf1 {[%clk 0:00:13]}  c3 {[%clk 0:00:24]} 40. h6 {[%clk 0:00:12]}  g6 {[%clk 0:00:21]} 41. Rd7 {[%clk 0:00:11]}  Qb5+ {[%clk 0:00:21]} 42. Rd3 {[%clk 0:00:11]}  f5 {[%clk 0:00:20]} 43. Bf3 {[%clk 0:00:10]}  Qb2 {[%clk 0:00:19]} 44. Qe2 {[%clk 0:00:02]}  Qxe2+ {[%clk 0:00:17]} 45. Kxe2 {[%clk 0:00:02]}  c2 {[%clk 0:00:18]} 0-1


[Site "https://www.chess.com"]

[Event "Titled Tuesday Blitz May 03 Early 2022"]
[White "Samarth, J Rao"]
[Black "Terzi, Alexei"]
[WhiteFideId "46652370"]
[BlackFideId "13505076"]
[WhiteElo "1514"]
[BlackElo "2031"]
[Result "1-0"]
[Round "01"]
[TimeControl "180+1"]
[Date "2022.05.03"]
[WhiteClock "0:00:43"]
[BlackClock "0:00:17"]

1. d4 {[%clk 0:02:58]}  Nf6 {[%clk 0:02:58]} 2. c4 {[%clk 0:02:57]}  c5 {[%clk 0:02:58]} 3. d5 {[%clk 0:02:57]}  b5 {[%clk 0:02:57]} 4. a4 {[%clk 0:02:56]}  bxc4 {[%clk 0:02:57]} 5. Nc3 {[%clk 0:02:55]}  g6 {[%clk 0:02:56]} 6. e4 {[%clk 0:02:53]}  d6 {[%clk 0:02:56]} 7. Bxc4 {[%clk 0:02:52]}  Bg7 {[%clk 0:02:56]} 8. f4 {[%clk 0:02:51]}  O-O {[%clk 0:02:55]} 9. Nf3 {[%clk 0:02:50]}  Ba6 {[%clk 0:02:46]} 10. Bxa6 {[%clk 0:02:48]}  Nxa6 {[%clk 0:02:47]} 11. O-O {[%clk 0:02:47]}  Nb4 {[%clk 0:02:47]} 12. Qe2 {[%clk 0:02:45]}  Qc7 {[%clk 0:02:44]} 13. Rd1 {[%clk 0:02:43]}  Qb7 {[%clk 0:02:43]} 14. h3 {[%clk 0:02:38]}  Rfe8 {[%clk 0:02:38]} 15. Be3 {[%clk 0:02:37]}  Rab8 {[%clk 0:02:31]} 16. Rac1 {[%clk 0:02:31]}  Qa6 {[%clk 0:02:25]} 17. Qxa6 {[%clk 0:02:28]}  Nxa6 {[%clk 0:02:26]} 18. Rd2 {[%clk 0:02:27]}  Rb4 {[%clk 0:02:21]} 19. e5 {[%clk 0:02:25]}  Ne4 {[%clk 0:02:16]} 20. Nxe4 {[%clk 0:02:19]}  Rxe4 {[%clk 0:02:17]} 21. Kf2 {[%clk 0:02:17]}  Rxa4 {[%clk 0:02:15]} 22. Rc3 {[%clk 0:02:09]}  Rb8 {[%clk 0:02:12]} 23. Re2 {[%clk 0:02:02]}  Nc7 {[%clk 0:02:06]} 24. Rd3 {[%clk 0:02:01]}  Rab4 {[%clk 0:01:57]} 25. Bc1 {[%clk 0:01:48]}  a5 {[%clk 0:01:51]} 26. exd6 {[%clk 0:01:44]}  exd6 {[%clk 0:01:50]} 27. Re7 {[%clk 0:01:43]}  Bxb2 {[%clk 0:01:41]} 28. Bd2 {[%clk 0:01:38]}  R4b7 {[%clk 0:01:35]} 29. Bxa5 {[%clk 0:01:37]}  Nb5 {[%clk 0:01:25]} 30. Rxb7 {[%clk 0:01:27]}  Rxb7 {[%clk 0:01:25]} 31. Rb3 {[%clk 0:01:28]}  Bf6 {[%clk 0:01:24]} 32. Nd2 {[%clk 0:01:25]}  Kf8 {[%clk 0:01:05]} 33. Nc4 {[%clk 0:01:22]}  Ke7 {[%clk 0:01:03]} 34. Na3 {[%clk 0:01:19]}  Bd4+ {[%clk 0:00:55]} 35. Kf3 {[%clk 0:01:14]}  Nxa3 {[%clk 0:00:24]} 36. Rxb7+ {[%clk 0:01:03]}  Kf6 {[%clk 0:00:24]} 37. Bd8+ {[%clk 0:01:01]}  Kg7 {[%clk 0:00:24]} 38. Be7 {[%clk 0:01:01]}  Nc4 {[%clk 0:00:24]} 39. Rd7 {[%clk 0:01:00]}  Nd2+ {[%clk 0:00:16]} 40. Ke2 {[%clk 0:00:58]}  Nb3 {[%clk 0:00:15]} 41. Bxd6 {[%clk 0:00:51]}  c4 {[%clk 0:00:15]} 42. Be5+ {[%clk 0:00:50]}  Bxe5 {[%clk 0:00:15]} 43. fxe5 {[%clk 0:00:51]}  c3 {[%clk 0:00:16]} 44. Rc7 {[%clk 0:00:49]}  c2 {[%clk 0:00:16]} 45. Rxc2 {[%clk 0:00:46]}  Nd4+ {[%clk 0:00:16]} 46. Kd3 {[%clk 0:00:47]}  Nxc2 {[%clk 0:00:16]} 47. Kxc2 {[%clk 0:00:48]}  Kf8 {[%clk 0:00:16]} 48. Kd3 {[%clk 0:00:48]}  Ke8 {[%clk 0:00:16]} 49. Kd4 {[%clk 0:00:48]}  Kd7 {[%clk 0:00:16]} 50. Kc5 {[%clk 0:00:48]}  h6 {[%clk 0:00:17]} 51. g4 {[%clk 0:00:44]}  g5 {[%clk 0:00:16]} 52. d6 {[%clk 0:00:43]}  Kd8 {[%clk 0:00:16]} 53. Kc6 {[%clk 0:00:42]}  Kc8 {[%clk 0:00:16]} 54. d7+ {[%clk 0:00:42]}  Kd8 {[%clk 0:00:16]} 55. Kd6 {[%clk 0:00:42]}  f6 {[%clk 0:00:17]} 56. e6 {[%clk 0:00:42]}  f5 {[%clk 0:00:17]} 57. e7# {[%clk 0:00:43]} 1-0


[Site "https://www.chess.com"]

[Event "Titled Tuesday Blitz May 03 Early 2022"]
[White "Sebag, Marie"]
[Black "Gabrielian, Artur"]
[WhiteFideId "617822"]
[BlackFideId "4131002"]
[WhiteElo "2440"]
[BlackElo "2440"]
[Result "0-1"]
[Round "01"]
[TimeControl "180+1"]
[Date "2022.05.03"]
[WhiteClock "0:00:20"]
[BlackClock "0:00:31"]

1. e4 {[%clk 0:02:59]}  e5 {[%clk 0:02:59]} 2. Nf3 {[%clk 0:02:58]}  Nc6 {[%clk 0:02:58]} 3. Bb5 {[%clk 0:02:57]}  a6 {[%clk 0:02:58]} 4. Ba4 {[%clk 0:02:56]}  d6 {[%clk 0:02:58]} 5. O-O {[%clk 0:02:55]}  Bd7 {[%clk 0:02:58]} 6. c3 {[%clk 0:02:51]}  g6 {[%clk 0:02:58]} 7. d4 {[%clk 0:02:51]}  Bg7 {[%clk 0:02:58]} 8. Re1 {[%clk 0:02:52]}  h6 {[%clk 0:02:57]} 9. h3 {[%clk 0:02:51]}  Nf6 {[%clk 0:02:57]} 10. Nbd2 {[%clk 0:02:49]}  O-O {[%clk 0:02:56]} 11. Nf1 {[%clk 0:02:49]}  Nh7 {[%clk 0:02:51]} 12. Ng3 {[%clk 0:02:47]}  Kh8 {[%clk 0:02:51]} 13. Bb3 {[%clk 0:02:38]}  Qe8 {[%clk 0:02:45]} 14. Be3 {[%clk 0:02:32]}  f5 {[%clk 0:02:39]} 15. exf5 {[%clk 0:02:24]}  gxf5 {[%clk 0:02:38]} 16. Bd2 {[%clk 0:01:53]}  e4 {[%clk 0:02:31]} 17. Nh4 {[%clk 0:01:45]}  Ne7 {[%clk 0:02:30]} 18. Nh5 {[%clk 0:01:37]}  d5 {[%clk 0:02:25]} 19. Nxg7 {[%clk 0:01:31]}  Kxg7 {[%clk 0:02:25]} 20. Bf4 {[%clk 0:01:31]}  c6 {[%clk 0:02:14]} 21. Qd2 {[%clk 0:01:12]}  Qh5 {[%clk 0:02:09]} 22. g3 {[%clk 0:01:12]}  Ng5 {[%clk 0:02:07]} 23. Bd1 {[%clk 0:01:08]}  Nxh3+ {[%clk 0:02:04]} 24. Kh2 {[%clk 0:01:05]}  Nxf4 {[%clk 0:01:53]} 25. Bxh5 {[%clk 0:00:59]}  Nxh5 {[%clk 0:01:53]} 26. f4 {[%clk 0:00:49]}  Nf6 {[%clk 0:01:50]} 27. Ng2 {[%clk 0:00:47]}  Ng4+ {[%clk 0:01:42]} 28. Kg1 {[%clk 0:00:47]}  Ng8 {[%clk 0:01:43]} 29. Ne3 {[%clk 0:00:46]}  N8f6 {[%clk 0:01:42]} 30. Nxg4 {[%clk 0:00:42]}  Nxg4 {[%clk 0:01:42]} 31. Rac1 {[%clk 0:00:43]}  Be6 {[%clk 0:01:39]} 32. b3 {[%clk 0:00:41]}  h5 {[%clk 0:01:31]} 33. c4 {[%clk 0:00:39]}  a5 {[%clk 0:01:29]} 34. cxd5 {[%clk 0:00:37]}  Bxd5 {[%clk 0:01:29]} 35. Rc5 {[%clk 0:00:37]}  Rh8 {[%clk 0:01:24]} 36. Rxa5 {[%clk 0:00:32]}  Raf8 {[%clk 0:00:40]} 37. Qb4 {[%clk 0:00:31]}  Rf7 {[%clk 0:00:40]} 38. Ra7 {[%clk 0:00:31]}  h4 {[%clk 0:00:37]} 39. gxh4 {[%clk 0:00:31]}  Rxh4 {[%clk 0:00:37]} 40. Rxb7 {[%clk 0:00:31]}  e3 {[%clk 0:00:32]} 41. Rxf7+ {[%clk 0:00:30]}  Kxf7 {[%clk 0:00:32]} 42. Rxe3 {[%clk 0:00:20]}  Rh1# {[%clk 0:00:31]} 0-1


[Site "https://www.chess.com"]

[Event "Titled Tuesday Blitz May 03 Early 2022"]
[White "Shuvalov, Evgenij"]
[Black "Le, Tuan Minh"]
[WhiteFideId "4187237"]
[BlackFideId "12401153"]
[WhiteElo "2130"]
[BlackElo "2450"]
[Result "0-1"]
[Round "01"]
[TimeControl "180+1"]
[Date "2022.05.03"]
[WhiteClock "0:00:01"]
[BlackClock "0:00:04"]

1. Nf3 {[%clk 0:02:59]}  d5 {[%clk 0:02:59]} 2. c4 {[%clk 0:02:59]}  c6 {[%clk 0:02:58]} 3. g3 {[%clk 0:02:59]}  Bf5 {[%clk 0:02:53]} 4. cxd5 {[%clk 0:02:57]}  cxd5 {[%clk 0:02:52]} 5. Qb3 {[%clk 0:02:54]}  Qc7 {[%clk 0:02:52]} 6. Nc3 {[%clk 0:02:53]}  e6 {[%clk 0:02:52]} 7. d3 {[%clk 0:02:53]}  Nc6 {[%clk 0:02:51]} 8. Bf4 {[%clk 0:02:53]}  Qb6 {[%clk 0:02:51]} 9. Qxb6 {[%clk 0:02:52]}  axb6 {[%clk 0:02:52]} 10. Bg2 {[%clk 0:02:46]}  Nf6 {[%clk 0:02:50]} 11. Nb5 {[%clk 0:02:44]}  Bb4+ {[%clk 0:02:47]} 12. Bd2 {[%clk 0:02:41]}  Ke7 {[%clk 0:02:42]} 13. a3 {[%clk 0:02:39]}  Rhc8 {[%clk 0:02:38]} 14. Nfd4 {[%clk 0:02:31]}  Bxd2+ {[%clk 0:02:33]} 15. Kxd2 {[%clk 0:02:32]}  Bg6 {[%clk 0:02:31]} 16. f4 {[%clk 0:02:31]}  Nd7 {[%clk 0:02:21]} 17. b4 {[%clk 0:02:09]}  f6 {[%clk 0:01:53]} 18. Bh3 {[%clk 0:02:00]}  Bf7 {[%clk 0:01:29]} 19. e4 {[%clk 0:01:51]}  dxe4 {[%clk 0:01:27]} 20. dxe4 {[%clk 0:01:50]}  g6 {[%clk 0:01:24]} 21. Rhd1 {[%clk 0:01:32]}  Nxd4 {[%clk 0:01:12]} 22. Nxd4 {[%clk 0:01:31]}  e5 {[%clk 0:01:13]} 23. Nb5 {[%clk 0:01:19]}  Bc4 {[%clk 0:01:03]} 24. Nc3 {[%clk 0:01:17]}  Be6 {[%clk 0:00:39]} 25. Bxe6 {[%clk 0:01:10]}  Kxe6 {[%clk 0:00:40]} 26. Nb5 {[%clk 0:00:52]}  exf4 {[%clk 0:00:20]} 27. gxf4 {[%clk 0:00:52]}  g5 {[%clk 0:00:21]} 28. Ke3 {[%clk 0:00:44]}  gxf4+ {[%clk 0:00:20]} 29. Kxf4 {[%clk 0:00:45]}  Ke7 {[%clk 0:00:11]} 30. Nd6 {[%clk 0:00:36]}  Rc7 {[%clk 0:00:06]} 31. Nf5+ {[%clk 0:00:36]}  Kf7 {[%clk 0:00:06]} 32. Rg1 {[%clk 0:00:33]}  Kf8 {[%clk 0:00:04]} 33. Rg7 {[%clk 0:00:29]}  Rac8 {[%clk 0:00:02]} 34. Rag1 {[%clk 0:00:27]}  Ne5 {[%clk 0:00:03]} 35. Rg8+ {[%clk 0:00:23]}  Kf7 {[%clk 0:00:03]} 36. Nd6+ {[%clk 0:00:22]}  Ke6 {[%clk 0:00:03]} 37. Nxc8 {[%clk 0:00:20]}  Rc3 {[%clk 0:00:03]} 38. R8g3 {[%clk 0:00:15]}  Rxc8 {[%clk 0:00:03]} 39. Rh3 {[%clk 0:00:11]}  Rc2 {[%clk 0:00:04]} 40. Rxh7 {[%clk 0:00:10]}  Rc3 {[%clk 0:00:02]} 41. Rg3 {[%clk 0:00:09]}  Rc2 {[%clk 0:00:03]} 42. Rb3 {[%clk 0:00:06]}  Rf2+ {[%clk 0:00:03]} 43. Kg3 {[%clk 0:00:06]}  Ra2 {[%clk 0:00:03]} 44. h4 {[%clk 0:00:06]}  Nf7 {[%clk 0:00:02]} 45. Rg7 {[%clk 0:00:04]}  Nd6 {[%clk 0:00:03]} 46. Kf4 {[%clk 0:00:02]}  Ra1 {[%clk 0:00:03]} 47. Rf3 {[%clk 0:00:02]}  Rh1 {[%clk 0:00:03]} 48. Kg4 {[%clk 0:00:01]}  Rg1+ {[%clk 0:00:04]} 49. Kh5 {[%clk 0:00:01]}  Rxg7 {[%clk 0:00:04]} 0-1


[Site "https://www.chess.com"]